fUST/lending_fUST_20241223
["ID","MTS","AMOUNT","RATE_DAILY","PERIOD"]
[346324907,1734892249202,-214.797474,0.00013698,2]
[346324909,1734892249211,-500.0,0.00013698,2]
[346324911,1734892249222,-151.0,0.00013698,2]
[346324912,1734892249232,-214.797474,0.00013698,2]
[346324915,1734892249242,-151.0,0.00013698,2]
[346324917,1734892249252,-500.0,0.00013698,2]
[346324919,1734892249262,-214.797474,0.00013698,2]
[346324921,1734892249271,-151.0,0.00013698,2]
[346324923,1734892249281,-214.797474,0.00013698,2]
[346324925,1734892249290,-151.0,0.00013698,2]
[346324927,1734892249300,-214.797474,0.00013698,2]
[346324929,1734892249310,-151.0,0.00013698,2]
[346324931,1734892249319,-500.0,0.00013698,2]
[346324932,1734892249329,-630.95,0.00013698,2]
[346324935,1734892249339,-214.797474,0.00013698,2]
[346324937,1734892249348,-151.0,0.00013698,2]
[346324939,1734892249358,-214.797474,0.00013698,2]
[346324941,1734892249368,-151.0,0.00013698,2]
[346324943,1734892249380,-214.797474,0.00013698,2]
[346324945,1734892249391,-151.0,0.00013698,2]
[346324947,1734892249402,-597.69,0.00013698,2]
[346324948,1734892249413,-151.0,0.00013698,2]
[346324950,1734892249426,-214.797474,0.00013698,2]
[346324952,1734892249437,-500.0,0.00013698,2]
[346324954,1734892249446,-500.0,0.00013698,2]
[346324956,1734892249456,-151.0,0.00013698,2]
[346324959,1734892249465,-214.797474,0.00013698,2]
[346324961,1734892249475,-151.0,0.00013698,2]
[346324963,1734892249486,-214.797474,0.00013698,2]
[346324965,1734892249496,-151.0,0.00013698,2]
[346324967,1734892249505,-214.797474,0.00013698,2]
[346324969,1734892249514,-151.0,0.00013698,2]
[346324971,1734892249523,-214.797474,0.00013698,2]
[346324973,1734892249533,-540.71,0.00013698,2]
[346324975,1734892249542,-214.797466,0.00013698,2]
[346324977,1734892249551,-967.15,0.00013698,2]
[346324979,1734892249561,-15974.25,0.00013698,2]
[346324981,1734892249570,-500.0,0.00013698,2]
[346324983,1734892249581,-618.11,0.00013698,2]
[346324985,1734892249590,-500.0,0.00013698,2]
[346324987,1734892249600,-500.0,0.00013698,2]
[346324989,1734892249609,-30539.9,0.00013698,2]
[346324991,1734892249619,-500.0,0.00013698,2]
[346324993,1734892249631,-1339.54,0.00013698,2]
[346324995,1734892249642,-500.0,0.00013698,2]
[346324997,1734892249653,-500.0,0.00013698,2]
[346324999,1734892249662,-67409.15,0.00013698,2]
[346325001,1734892249672,-500.0,0.00013698,2]
[346325003,1734892249681,-3535.66,0.00013698,2]
[346325005,1734892249691,-797.38,0.00013698,2]
[346325007,1734892249700,-500.0,0.00013698,2]
[346325009,1734892249709,-4228.83,0.00013698,2]
[346325011,1734892249724,-500.0,0.00013698,2]
[346325013,1734892249733,-500.0,0.00013698,2]
[346325015,1734892249743,-500.0,0.00013698,2]
[346325018,1734892249753,-500.0,0.00013698,2]
[346325020,1734892249763,-500.0,0.00013698,2]
[346325022,1734892249772,-516.49,0.00013698,2]
[346325024,1734892249783,-500.0,0.00013698,2]
[346325026,1734892249793,-500.0,0.00013698,2]
[346325028,1734892249802,-11218.66,0.00013698,2]
[346325030,1734892249811,-2917.97,0.00013698,2]
[346325032,1734892249820,-500.0,0.00013698,2]
[346325034,1734892249831,-500.0,0.00013698,2]
[346325036,1734892249840,-500.0,0.00013698,2]
[346325038,1734892249849,-500.0,0.00013698,2]
[346325040,1734892249859,-500.0,0.00013698,2]
[346325042,1734892249869,-151.0,0.00013698,2]
[346325044,1734892249878,-2757.08,0.00013698,2]
[346325046,1734892249888,-151.0,0.00013698,2]
[346325048,1734892249897,-151.0,0.00013698,2]
[346325050,1734892249907,-151.0,0.00013698,2]
[346325052,1734892249917,-508.20192022,0.00013698,2]
[346325054,1734892249926,-151.0,0.00013698,2]
[346325056,1734892249935,-20834.62,0.00013698,2]
[346325058,1734892249945,-500.0,0.00013698,2]
[346325060,1734892249954,-151.0,0.00013698,2]
[346325062,1734892249963,-151.0,0.00013698,2]
[346325064,1734892249972,-151.0,0.00013698,2]
[346325066,1734892249982,-500.0,0.00013698,2]
[346325068,1734892249991,-906.54,0.00013698,2]
[346325070,1734892250000,-151.0,0.00013698,2]
[346325072,1734892250010,-151.0,0.00013698,2]
[346325074,1734892250019,-151.0,0.00013698,2]
[346325076,1734892250028,-151.0,0.00013698,2]
[346325078,1734892250038,-151.0,0.00013698,2]
[346325080,1734892250047,-151.0,0.00013698,2]
[346325082,1734892250056,-509.96462413,0.00013698,2]
[346325084,1734892250065,-195.81289,0.00013698,2]
[346325086,1734892250074,-500.0,0.00013698,2]
[346325088,1734892250085,-500.0,0.00013698,2]
[346325090,1734892250094,-500.0,0.00013698,2]
[346325092,1734892250103,-500.0,0.00013698,2]
[346325095,1734892250113,-500.0,0.00013698,2]
[346325097,1734892250122,-328.47414443,0.00013698,2]
[346325099,1734892250132,-500.0,0.00013698,2]
[346325101,1734892250145,-3321.96,0.00013698,2]
[346325103,1734892250154,-703.37,0.00013698,2]
[346325105,1734892250163,-530.22,0.00013698,2]
[346325107,1734892250173,-500.0,0.00013698,2]
[346325109,1734892250185,-824.15,0.00013698,2]
[346325111,1734892250194,-500.0,0.00013698,2]
[346325113,1734892250204,-1424.63,0.00013698,2]
[346325115,1734892250215,-500.0,0.00013698,2]
[346325117,1734892250225,-500.0,0.00013698,2]
[346325119,1734892250234,-7619.88,0.00013698,2]
[346325121,1734892250243,-357.579022,0.00013698,2]
[346325123,1734892250253,-1269.05,0.00013698,2]
[346325125,1734892250262,-357.579022,0.00013698,2]
[346325127,1734892250271,-357.579022,0.00013698,2]
[346325129,1734892250281,-197.86624621,0.00013698,2]
[346325131,1734892250291,-357.579022,0.00013698,2]
[346325133,1734892250301,-357.579022,0.00013698,2]
[346325135,1734892250310,-357.579022,0.00013698,2]
[346325137,1734892250320,-357.579022,0.00013698,2]
[346325140,1734892250330,-357.579022,0.00013698,2]
[346325142,1734892250339,-357.579022,0.00013698,2]
[346325144,1734892250349,-357.579022,0.00013698,2]
[346325146,1734892250358,-357.579022,0.00013698,2]
[346325148,1734892250368,-357.579022,0.00013698,2]
[346325149,1734892250377,-357.579022,0.00013698,2]
[346325151,1734892250387,-357.579022,0.00013698,2]
[346325153,1734892250396,-357.579022,0.00013698,2]
[346325156,1734892250405,-357.579022,0.00013698,2]
[346325158,1734892250415,-357.579022,0.00013698,2]
[346325160,1734892250425,-357.579022,0.00013698,2]
[346325161,1734892250434,-357.579022,0.00013698,2]
[346325164,1734892250443,-357.579014,0.00013698,2]
[346325166,1734892250453,-502.1722543,0.00013698,2]
[346325167,1734892250462,-410.15457137,0.00013698,2]
[346325169,1734892250471,-610.17,0.00013698,2]
[346325171,1734892250481,-500.0,0.00013698,2]
[346325173,1734892250490,-500.0,0.00013698,2]
[346325175,1734892250499,-500.0,0.00013698,2]
[346325177,1734892250508,-500.0,0.00013698,2]
[346325179,1734892250518,-500.0,0.00013698,2]
[346325181,1734892250527,-618.66,0.00013698,2]
[346325183,1734892250537,-1068.43,0.00013698,2]
[346325185,1734892250546,-500.0,0.00013698,2]
[346325187,1734892250555,-500.0,0.00013698,2]
[346325189,1734892250565,-6317.79,0.00013698,2]
[346325191,1734892250574,-1466.63,0.00013698,2]
[346325193,1734892250584,-816.21,0.00013698,2]
[346325195,1734892250594,-500.0,0.00013698,2]
[346325198,1734892250613,-500.0,0.00013698,2]
[346325200,1734892250624,-541.55585368,0.00013698,2]
[346325202,1734892250634,-1700.7,0.00013698,2]
[346325204,1734892250644,-864.12,0.00013698,2]
[346325206,1734892250654,-500.0,0.00013698,2]
[346325209,1734892250664,-1649.19,0.00013698,2]
[346325211,1734892250674,-507.59108074,0.00013698,2]
[346325213,1734892250684,-500.0,0.00013698,2]
[346325215,1734892250694,-547.53,0.00013698,2]
[346325217,1734892250704,-1597.35,0.00013698,2]
[346325219,1734892250713,-500.0,0.00013698,2]
[346325221,1734892250724,-500.0,0.00013698,2]
[346325223,1734892250734,-500.0,0.00013698,2]
[346325225,1734892250744,-500.0,0.00013698,2]
[346325227,1734892250754,-1700.56,0.00013698,2]
[346325229,1734892250764,-154.085248,0.00013698,2]
[346325231,1734892250774,-154.085248,0.00013698,2]
[346325233,1734892250783,-154.085248,0.00013698,2]
[346325235,1734892250793,-154.085248,0.00013698,2]
[346325237,1734892250803,-154.085248,0.00013698,2]
[346325239,1734892250813,-154.085248,0.00013698,2]
[346325241,1734892250823,-154.085248,0.00013698,2]
[346325244,1734892250834,-154.085248,0.00013698,2]
[346325246,1734892250843,-154.085248,0.00013698,2]
[346325248,1734892250853,-154.085248,0.00013698,2]
[346325250,1734892250863,-500.0,0.00013698,2]
[346325251,1734892250872,-154.085248,0.00013698,2]
[346325254,1734892250883,-500.0,0.00013698,2]
[346325256,1734892250893,-154.085248,0.00013698,2]
[346325258,1734892250902,-151.0,0.00013698,2]
[346325260,1734892250912,-154.085248,0.00013698,2]
[346325262,1734892250922,-154.085248,0.00013698,2]
[346325264,1734892250932,-1306.14,0.00013698,2]
[346325266,1734892250942,-154.085248,0.00013698,2]
[346325268,1734892250952,-151.0,0.00013698,2]
[346325270,1734892250962,-500.0,0.00013698,2]
[346325272,1734892250972,-154.085248,0.00013698,2]
[346325274,1734892250982,-151.0,0.00013698,2]
[346325276,1734892250993,-516.98,0.00013698,2]
[346325278,1734892251002,-151.0,0.00013698,2]
[346325280,1734892251012,-151.0,0.00013698,2]
[346325282,1734892251022,-173.631036,0.00013698,2]
[346325284,1734892251032,-2860.22,0.00013698,2]
[346325286,1734892251042,-500.0,0.00013699,2]
[346325288,1734892251051,-509.34422276,0.00013699,2]
[346325290,1734892251061,-500.0,0.00013699,2]
[346325292,1734892251071,-201.08838092,0.00013699,2]
[346325294,1734892251082,-151.0,0.00013699,2]
[346325296,1734892251091,-151.0,0.00013699,2]
[346325298,1734892251100,-151.0,0.00013699,2]
[346325300,1734892251110,-151.0,0.00013699,2]
[346325302,1734892251120,-151.0,0.00013699,2]
[346325304,1734892251130,-151.0,0.00013699,2]
[346325306,1734892251144,-151.0,0.00013699,2]
[346325308,1734892251154,-151.0,0.00013699,2]
[346325310,1734892251163,-151.0,0.00013699,2]
[346325312,1734892251173,-151.0,0.00013699,2]
[346325315,1734892251183,-151.0,0.00013699,2]
[346325316,1734892251195,-6361.9829942,0.00013699,2]
[346325319,1734892251205,-747.1787,0.00013699,2]
[346325321,1734892251214,-151.0,0.00013699,2]
[346325323,1734892251226,-213.97454,0.00013699,2]
[346325325,1734892251236,-213.974542,0.00013699,2]
[346325326,1734892251246,-501.3154511,0.000138,2]
[346325329,1734892251256,-421.3214863,0.000138,2]
[346325331,1734892251266,-666.0,0.00013872,2]
[346325333,1734892251276,-152.0,0.00013887,2]
[346325335,1734892251285,-2000.0,0.000139,2]
[346325337,1734892251295,-153.2926313,0.000139,2]
[346325339,1734892251305,-153.0,0.000139,2]
[346325341,1734892251315,-776.0,0.000139,4]
[346325343,1734892251326,-160.0,0.00013971,2]
[346325345,1734892251336,-500.0,0.00013972,2]
[346325347,1734892251346,-500.0,0.00013972,2]
[346325349,1734892251356,-559.568,0.00013972,2]
[346325351,1734892251365,-194.97539,0.00013972,2]
[346325353,1734892251375,-500.0,0.00013972,2]
[346325355,1734892251386,-500.0,0.00013972,2]
[346325357,1734892251395,-558.08,0.00013972,2]
[346325359,1734892251405,-500.0,0.00013972,2]
[346325361,1734892251414,-782.57,0.00013972,2]
[346325363,1734892251424,-500.0,0.00013972,2]
[346325365,1734892251434,-500.0,0.00013972,2]
[346325367,1734892251444,-500.0,0.00013972,2]
[346325369,1734892251455,-500.0,0.00013972,2]
[346325371,1734892251464,-500.0,0.00013972,2]
[346325373,1734892251474,-500.0,0.00013972,2]
[346325375,1734892251484,-500.0,0.00013972,2]
[346325377,1734892251493,-1331.95,0.00013972,2]
[346325379,1734892251502,-500.0,0.00013972,2]
[346325381,1734892251511,-500.0,0.00013972,2]
[346325383,1734892251521,-500.0,0.00013972,2]
[346325385,1734892251531,-500.0,0.00013972,2]
[346325387,1734892251540,-722.05,0.00013972,2]
[346325389,1734892251550,-500.0,0.00013972,2]
[346325391,1734892251559,-500.0,0.00013972,2]
[346325393,1734892251569,-500.0,0.00013972,2]
[346325395,1734892251579,-500.0,0.00013972,2]
[346325397,1734892251590,-500.0,0.00013972,2]
[346325399,1734892251600,-250.668132,0.00013972,2]
[346325401,1734892251610,-250.668132,0.00013972,2]
[346325403,1734892251620,-250.668132,0.00013972,2]
[346325405,1734892251630,-250.668132,0.00013972,2]
[346325407,1734892251640,-1000.0,0.00013972,2]
[346325409,1734892251650,-250.668132,0.00013972,2]
[346325411,1734892251659,-250.668132,0.00013972,2]
[346325412,1734892251670,-250.668132,0.00013972,2]
[346325413,1734892251680,-250.668132,0.00013972,2]
[346325414,1734892251689,-500.0,0.00013972,2]
[346325415,1734892251698,-502.75623695,0.00013972,2]
[346325416,1734892251708,-500.0,0.00013972,2]
[346325417,1734892251718,-760.51,0.00013972,2]
[346325418,1734892251728,-500.0,0.00013972,2]
[346325419,1734892251737,-500.0,0.00013972,2]
[346325420,1734892251746,-500.0,0.00013972,2]
[346325421,1734892251756,-396.41373082,0.00013972,2]
[346325422,1734892251766,-500.0,0.00013972,2]
[346325423,1734892251775,-151.0,0.00013972,2]
[346325424,1734892251785,-1221.7,0.00013972,2]
[346325425,1734892251794,-500.0,0.00013972,2]
[346325426,1734892251803,-500.0,0.00013972,2]
[346325427,1734892251812,-500.0,0.00013972,2]
[346325428,1734892251821,-500.0,0.00013972,2]
[346325429,1734892251831,-500.0,0.00013972,2]
[346325430,1734892251842,-1342.83,0.00013972,2]
[346325431,1734892251852,-500.0,0.00013972,2]
[346325432,1734892251861,-500.0,0.00013972,2]
[346325433,1734892251871,-500.0,0.00013972,2]
[346325434,1734892251880,-618.41,0.00013972,2]
[346325435,1734892251889,-500.0,0.00013972,2]
[346325436,1734892251898,-891.39,0.00013972,2]
[346325437,1734892251907,-500.0,0.00013972,2]
[346325438,1734892251917,-500.0,0.00013972,2]
[346325439,1734892251926,-500.0,0.00013972,2]
[346325440,1734892251936,-500.0,0.00013972,2]
[346325441,1734892251946,-500.0,0.00013972,2]
[346325442,1734892251955,-500.0,0.00013972,2]
[346325443,1734892251965,-500.0,0.00013972,2]
[346325444,1734892251974,-151.0,0.00013972,2]
[346325445,1734892251983,-500.0,0.00013972,2]
[346325446,1734892251993,-500.0,0.00013972,2]
[346325447,1734892252002,-392.852661,0.00013972,2]
[346325448,1734892252012,-562.76,0.00013972,2]
[346325449,1734892252021,-392.852663,0.00013972,2]
[346325450,1734892252031,-500.0,0.00013972,2]
[346325452,1734892252040,-803.81,0.00013972,2]
[346325454,1734892252050,-500.0,0.00013972,2]
[346325456,1734892252059,-699.25,0.00013972,2]
[346325458,1734892252068,-500.0,0.00013972,2]
[346325460,1734892252078,-500.0,0.00013972,2]
[346325462,1734892252088,-660.56,0.00013972,2]
[346325464,1734892252098,-500.0,0.00013972,2]
[346325465,1734892252107,-500.0,0.00013972,2]
[346325466,1734892252117,-500.0,0.00013972,2]
[346325467,1734892252130,-500.0,0.00013972,2]
[346325468,1734892252143,-514.05443116,0.00013972,2]
[346325470,1734892252152,-665.77,0.00013972,2]
[346325472,1734892252162,-781.89,0.00013972,2]
[346325474,1734892252172,-424.56174656,0.00013972,2]
[346325475,1734892252184,-2242.37,0.00013972,2]
[346325476,1734892252193,-237.06831383,0.00013972,2]
[346325477,1734892252203,-500.0,0.00013972,2]
[346325478,1734892252214,-500.0,0.00013972,2]
[346325479,1734892252224,-500.0,0.00013972,2]
[346325480,1734892252233,-500.0,0.00013972,2]
[346325481,1734892252243,-500.0,0.00013972,2]
[346325482,1734892252253,-500.0,0.00013972,2]
[346325483,1734892252262,-500.0,0.00013972,2]
[346325484,1734892252271,-500.0,0.00013972,2]
[346325485,1734892252280,-500.0,0.00013972,2]
[346325486,1734892252290,-500.0,0.00013972,2]
[346325487,1734892252297,-500.0,0.00013972,2]
[346325488,1734892252306,-500.0,0.00013972,2]
[346325489,1734892252316,-500.0,0.00013972,2]
[346325490,1734892252325,-500.0,0.00013972,2]
[346325491,1734892252337,-1450.31,0.00013972,2]
[346325492,1734892252558,-500.0,0.00013972,2]
[346325493,1734892252569,-649.1,0.00013972,2]
[346325494,1734892252578,-500.0,0.00013972,2]
[346325495,1734892252592,-500.0,0.00013972,2]
[346325496,1734892252601,-500.0,0.00013972,2]
[346325497,1734892252611,-500.0,0.00013972,2]
[346325498,1734892252620,-876.85,0.00013972,2]
[346325499,1734892252630,-1754.79,0.00013972,2]
[346325500,1734892252639,-254.05,0.00013972,2]
[346325501,1734892252649,-500.0,0.00013972,2]
[346325502,1734892252658,-2233.3,0.00013972,2]
[346325503,1734892252667,-4069.27,0.00013972,2]
[346325504,1734892252678,-500.0,0.00013972,2]
[346325505,1734892252687,-1407.0,0.00013972,2]
[346325506,1734892252697,-500.0,0.00013972,2]
[346325507,1734892252707,-500.0,0.00013972,2]
[346325508,1734892252716,-848.24,0.00013972,2]
[346325509,1734892252726,-1299.55,0.00013972,2]
[346325510,1734892252735,-500.0,0.00013972,2]
[346325511,1734892252745,-500.0,0.00013972,2]
[346325512,1734892252755,-500.0,0.00013972,2]
[346325513,1734892252764,-500.0,0.00013972,2]
[346325514,1734892252773,-580.6856816,0.00013972,2]
[346325515,1734892252783,-1807.87,0.00013972,2]
[346325516,1734892252792,-222.00794565,0.00013972,2]
[346325517,1734892252801,-576.16,0.00013972,2]
[346325518,1734892252811,-500.0,0.00013972,2]
[346325519,1734892252821,-500.0,0.00013972,2]
[346325520,1734892252830,-1065.2,0.00013972,2]
[346325521,1734892252846,-724.43,0.00013972,2]
[346325523,1734892252856,-500.0,0.00013972,2]
[346325525,1734892252865,-356.80300889,0.00013972,2]
[346325527,1734892252875,-500.0,0.00013972,2]
[346325529,1734892252884,-500.0,0.00013972,2]
[346325531,1734892252894,-500.0,0.00013972,2]
[346325533,1734892252903,-525.76,0.00013972,2]
[346325534,1734892252912,-500.0,0.00013972,2]
[346325535,1734892252921,-500.0,0.00013972,2]
[346325537,1734892252931,-500.0,0.00013972,2]
[346325538,1734892252941,-500.0,0.00013972,2]
[346325539,1734892252950,-500.0,0.00013972,2]
[346325540,1734892252960,-1380.67,0.00013972,2]
[346325541,1734892252969,-500.0,0.00013972,2]
[346325542,1734892252978,-500.0,0.00013972,2]
[346325543,1734892252987,-768.88,0.00013972,2]
[346325544,1734892252997,-500.0,0.00013972,2]
[346325545,1734892253006,-827.6,0.00013972,2]
[346325546,1734892253015,-500.0,0.00013972,2]
[346325547,1734892253025,-1191.61,0.00013972,2]
[346325548,1734892253035,-500.0,0.00013972,2]
[346325549,1734892253045,-500.0,0.00013972,2]
[346325550,1734892253055,-500.0,0.00013972,2]
[346325551,1734892253065,-1200.83,0.00013972,2]
[346325552,1734892253074,-604.87,0.00013972,2]
[346325553,1734892253086,-500.0,0.00013972,2]
[346325554,1734892253096,-500.0,0.00013972,2]
[346325555,1734892253105,-151.0,0.00013972,2]
[346325556,1734892253115,-500.0,0.00013972,2]
[346325557,1734892253124,-1192.75,0.00013972,2]
[346325558,1734892253135,-500.0,0.00013972,2]
[346325559,1734892253146,-560.65,0.00013972,2]
[346325560,1734892253155,-1563.06,0.00013972,2]
[346325561,1734892253165,-500.0,0.00013972,2]
[346325562,1734892253176,-500.0,0.00013972,2]
[346325563,1734892253187,-500.0,0.00013972,2]
[346325565,1734892253196,-523.69,0.00013972,2]
[346325567,1734892253205,-500.0,0.00013972,2]
[346325569,1734892253216,-500.0,0.00013972,2]
[346325571,1734892253226,-682.14,0.00013972,2]
[346325573,1734892253236,-500.0,0.00013972,2]
[346325574,1734892253246,-500.0,0.00013972,2]
[346325575,1734892253255,-500.0,0.00013972,2]
[346325577,1734892253264,-500.0,0.00013972,2]
[346325578,1734892253274,-500.0,0.00013972,2]
[346325579,1734892253283,-724.67,0.00013972,2]
[346325580,1734892253292,-500.0,0.00013972,2]
[346325581,1734892253302,-1388.835961,0.00013972,2]
[346325582,1734892253312,-574.46,0.00013972,2]
[346325583,1734892253322,-2420.63,0.00013972,2]
[346325584,1734892253335,-1388.83596,0.00013972,2]
[346325585,1734892253345,-1758.08,0.00013972,2]
[346325586,1734892253354,-763.19,0.00013972,2]
[346325587,1734892253364,-500.0,0.00013972,2]
[346325588,1734892253373,-2017.31,0.00013972,2]
[346325589,1734892253383,-1585.46,0.00013972,2]
[346325590,1734892253392,-500.0,0.00013972,2]
[346325591,1734892253401,-500.0,0.00013972,2]
[346325592,1734892253410,-500.0,0.00013972,2]
[346325593,1734892253420,-2357.4,0.00013972,2]
[346325594,1734892253429,-592.2,0.00013972,2]
[346325595,1734892253438,-888.43,0.00013972,2]
[346325596,1734892253448,-500.0,0.00013972,2]
[346325597,1734892253457,-5846.5,0.00013972,2]
[346325598,1734892253466,-315.25449114,0.00013972,2]
[346325599,1734892253476,-506.57831107,0.00013972,2]
[346325600,1734892253485,-3287.19,0.00013972,2]
[346325601,1734892253494,-649.37185991,0.00013972,2]
[346325602,1734892253504,-500.0,0.00013972,2]
[346325603,1734892253513,-500.0,0.00013972,2]
[346325604,1734892253522,-500.0,0.00013972,2]
[346325605,1734892253531,-634.11,0.00013972,2]
[346325606,1734892253541,-753.07,0.00013972,2]
[346325607,1734892253551,-500.0,0.00013972,2]
[346325608,1734892253560,-500.0,0.00013972,2]
[346325609,1734892253569,-500.0,0.00013972,2]
[346325610,1734892253578,-500.0,0.00013972,2]
[346325611,1734892253594,-500.0,0.00013972,2]
[346325612,1734892253604,-3193.65,0.00013972,2]
[346325613,1734892253613,-500.0,0.00013972,2]
[346325614,1734892253623,-500.0,0.00013972,2]
[346325615,1734892253632,-1317.33,0.00013972,2]
[346325616,1734892253641,-668.1,0.00013972,2]
[346325617,1734892253650,-1952.63,0.00013972,2]
[346325618,1734892253660,-628.3,0.00013972,2]
[346325619,1734892253669,-253.76990009,0.00013972,2]
[346325620,1734892253678,-1597.69,0.00013972,2]
[346325621,1734892253688,-1014.17,0.00013972,2]
[346325622,1734892253697,-1321.1,0.00013972,2]
[346325623,1734892253709,-500.0,0.00013972,2]
[346325624,1734892253719,-1029.68,0.00013972,2]
[346325625,1734892253729,-1563.43,0.00013972,2]
[346325626,1734892253738,-500.0,0.00013972,2]
[346325627,1734892253748,-1180.28,0.00013972,2]
[346325628,1734892253757,-500.0,0.00013972,2]
[346325629,1734892253767,-500.0,0.00013972,2]
[346325630,1734892253777,-500.0,0.00013972,2]
[346325631,1734892253787,-500.0,0.00013972,2]
[346325632,1734892253796,-500.0,0.00013972,2]
[346325633,1734892253805,-500.0,0.00013972,2]
[346325634,1734892253815,-500.0,0.00013972,2]
[346325635,1734892253824,-702.22,0.00013972,2]
[346325636,1734892253835,-500.0,0.00013972,2]
[346325637,1734892253844,-500.0,0.00013972,2]
[346325638,1734892253855,-500.0,0.00013972,2]
[346325639,1734892253865,-579.52,0.00013972,2]
[346325640,1734892253875,-500.0,0.00013972,2]
[346325641,1734892253885,-827.67,0.00013972,2]
[346325642,1734892253894,-735.01,0.00013972,2]
[346325643,1734892253904,-500.0,0.00013972,2]
[346325644,1734892253914,-500.0,0.00013972,2]
[346325645,1734892253923,-500.0,0.00013972,2]
[346325646,1734892253933,-500.0,0.00013972,2]
[346325647,1734892253942,-500.0,0.00013972,2]
[346325648,1734892253952,-150.08,0.00013972,2]
[346325649,1734892253962,-1002.01,0.00013972,2]
[346325650,1734892253971,-4715.54,0.00013972,2]
[346325651,1734892253980,-1880.73,0.00013972,2]
[346325652,1734892253990,-655.52,0.00013972,2]
[346325653,1734892254000,-583.33,0.00013972,2]
[346325654,1734892254009,-507.41,0.00013972,2]
[346325655,1734892254019,-500.0,0.00013972,2]
[346325656,1734892254028,-500.0,0.00013972,2]
[346325657,1734892254039,-500.0,0.00013972,2]
[346325658,1734892254048,-537.41,0.00013972,2]
[346325659,1734892254058,-500.0,0.00013972,2]
[346325660,1734892254068,-2308.86,0.00013972,2]
[346325661,1734892254077,-561.07658577,0.00013972,2]
[346325662,1734892254089,-500.0,0.00013972,2]
[346325663,1734892254098,-500.0,0.00013972,2]
[346325664,1734892254107,-500.0,0.00013972,2]
[346325665,1734892254117,-500.0,0.00013972,2]
[346325666,1734892254127,-500.0,0.00013972,2]
[346325667,1734892254139,-500.0,0.00013972,2]
[346325668,1734892254157,-655.65,0.00013972,2]
[346325669,1734892254168,-500.0,0.00013972,2]
[346325670,1734892254177,-1141.33,0.00013972,2]
[346325671,1734892254188,-500.0,0.00013972,2]
[346325672,1734892254198,-500.0,0.00013972,2]
[346325673,1734892254208,-630.95,0.00013972,2]
[346325674,1734892254218,-500.0,0.00013972,2]
[346325675,1734892254228,-597.69,0.00013972,2]
[346325676,1734892254238,-541.30300177,0.00013972,2]
[346325677,1734892254247,-507.71543197,0.00013972,2]
[346325678,1734892254257,-540.71,0.00013972,2]
[346325679,1734892254267,-967.15,0.00013972,2]
[346325680,1734892254276,-2593.04743675,0.00013972,2]
[346325681,1734892254654,-358.83529057,0.00013972,2]
[346325682,1734892349517,141.87815252,0.0001327,2]
[346325684,1734893140095,-315.788,0.00013137,2]
[346325685,1734893140117,-315.788,0.0001327,2]